[Event "Titled Tuesday Blitz March 28 Late 2023"]
[White "Mekhitarian, Krikor Sevag"]
[Black "Vlassov, Nikolai"]
[WhiteFideId "2107660"]
[BlackFideId "4103360"]
[WhiteElo "2604"]
[BlackElo "2324"]
[Result "1-0"]
[Round "08"]
[TimeControl "180+2"]
[Date "2023.03.28"]
[WhiteClock "0:00:04"]
[BlackClock "0:00:02"]

1. Nf3 {[%clk 0:03:00]}  c5 {[%clk 0:02:59]} 2. c4 {[%clk 0:02:55]}  g6 {[%clk 0:02:59]} 3. d4 {[%clk 0:02:45]}  Bg7 {[%clk 0:02:59]} 4. e4 {[%clk 0:02:44]}  Qa5+ {[%clk 0:02:58]} 5. Nc3 {[%clk 0:02:38]}  Nc6 {[%clk 0:02:57]} 6. d5 {[%clk 0:02:20]}  Nd4 {[%clk 0:02:54]} 7. Bd2 {[%clk 0:02:20]}  Nxf3+ {[%clk 0:02:48]} 8. Qxf3 {[%clk 0:02:21]}  d6 {[%clk 0:02:46]} 9. Bd3 {[%clk 0:02:16]}  Nf6 {[%clk 0:02:44]} 10. O-O {[%clk 0:02:13]}  O-O {[%clk 0:02:42]} 11. h3 {[%clk 0:02:09]}  a6 {[%clk 0:02:19]} 12. Qe2 {[%clk 0:02:04]}  e6 {[%clk 0:02:16]} 13. a3 {[%clk 0:01:53]}  Qc7 {[%clk 0:02:12]} 14. Rac1 {[%clk 0:01:49]}  exd5 {[%clk 0:02:12]} 15. cxd5 {[%clk 0:01:49]}  b5 {[%clk 0:02:09]} 16. b4 {[%clk 0:01:41]}  Nd7 {[%clk 0:01:59]} 17. Rfe1 {[%clk 0:01:30]}  Bb7 {[%clk 0:01:56]} 18. Qd1 {[%clk 0:01:29]}  Rae8 {[%clk 0:01:53]} 19. Bf4 {[%clk 0:01:29]}  Qb6 {[%clk 0:01:51]} 20. Bf1 {[%clk 0:01:21]}  Rc8 {[%clk 0:01:46]} 21. Qb3 {[%clk 0:01:17]}  Bd4 {[%clk 0:01:38]} 22. Be3 {[%clk 0:01:15]}  Ne5 {[%clk 0:01:27]} 23. bxc5 {[%clk 0:01:05]}  dxc5 {[%clk 0:01:16]} 24. Bxd4 {[%clk 0:01:00]}  cxd4 {[%clk 0:01:16]} 25. Na4 {[%clk 0:01:00]}  Qd6 {[%clk 0:01:10]} 26. Nb2 {[%clk 0:00:59]}  f5 {[%clk 0:01:02]} 27. Rxc8 {[%clk 0:00:55]}  Rxc8 {[%clk 0:00:57]} 28. exf5 {[%clk 0:00:43]}  Rc3 {[%clk 0:00:28]} 29. Qb4 {[%clk 0:00:29]}  Qxd5 {[%clk 0:00:28]} 30. fxg6 {[%clk 0:00:21]}  hxg6 {[%clk 0:00:28]} 31. Qe7 {[%clk 0:00:21]}  Nf7 {[%clk 0:00:20]} 32. Qf6 {[%clk 0:00:16]}  Qc6 {[%clk 0:00:12]} 33. Qxd4 {[%clk 0:00:13]}  Rxa3 {[%clk 0:00:11]} 34. Nd3 {[%clk 0:00:12]}  Bc8 {[%clk 0:00:04]} 35. Nb4 {[%clk 0:00:10]}  Qd7 {[%clk 0:00:02]} 36. Qf4 {[%clk 0:00:08]}  Ra4 {[%clk 0:00:03]} 37. Qf6 {[%clk 0:00:04]}  Bb7 {[%clk 0:00:02]} 38. Qxg6+ {[%clk 0:00:04]}  Kf8 {[%clk 0:00:02]} 39. Nd3 {[%clk 0:00:04]}  Rd4 {[%clk 0:00:02]} 40. Nc5 {[%clk 0:00:04]}  Qd6 {[%clk 0:00:02]} 41. Ne6+ {[%clk 0:00:05]}  Ke7 {[%clk 0:00:01]} 42. Nxd4+ {[%clk 0:00:05]}  Kd7 {[%clk 0:00:02]} 43. Qxf7+ {[%clk 0:00:04]}  Kc8 {[%clk 0:00:02]} 44. Re8+ {[%clk 0:00:04]} 1-0


[Site "https://www.chess.com"]

[Event "Titled Tuesday Blitz March 28 Late 2023"]
[White "Dobre, Claudiu-Cristian"]
[Black "Gokerkan, Cem Kaan"]
[WhiteFideId "1211854"]
[BlackFideId "6336760"]
[WhiteElo "2207"]
[BlackElo "2365"]
[Result "1-0"]
[Round "08"]
[TimeControl "180+2"]
[Date "2023.03.28"]
[WhiteClock "0:00:07"]
[BlackClock "0:00:03"]

1. e4 {[%clk 0:03:00]}  e5 {[%clk 0:03:00]} 2. Nf3 {[%clk 0:02:59]}  Nf6 {[%clk 0:03:00]} 3. Nxe5 {[%clk 0:02:59]}  d5 {[%clk 0:03:00]} 4. exd5 {[%clk 0:02:49]}  Qxd5 {[%clk 0:03:01]} 5. Qe2 {[%clk 0:02:34]}  Be7 {[%clk 0:02:44]} 6. Qb5+ {[%clk 0:02:33]}  c6 {[%clk 0:02:01]} 7. Qxd5 {[%clk 0:02:33]}  Nxd5 {[%clk 0:02:02]} 8. Bc4 {[%clk 0:02:21]}  Be6 {[%clk 0:01:38]} 9. Nc3 {[%clk 0:02:02]}  Bf6 {[%clk 0:01:32]} 10. Nxd5 {[%clk 0:01:59]}  cxd5 {[%clk 0:01:19]} 11. Bb5+ {[%clk 0:01:59]}  Ke7 {[%clk 0:01:19]} 12. d4 {[%clk 0:01:54]}  a6 {[%clk 0:01:16]} 13. Bd3 {[%clk 0:01:49]}  Nc6 {[%clk 0:01:07]} 14. Nxc6+ {[%clk 0:01:48]}  bxc6 {[%clk 0:01:07]} 15. c3 {[%clk 0:01:42]}  Rhb8 {[%clk 0:01:06]} 16. b3 {[%clk 0:01:39]}  a5 {[%clk 0:01:06]} 17. Ba3+ {[%clk 0:01:36]}  Kd7 {[%clk 0:01:07]} 18. Ke2 {[%clk 0:01:31]}  a4 {[%clk 0:01:03]} 19. Bc2 {[%clk 0:01:31]}  Re8 {[%clk 0:00:54]} 20. Kf3 {[%clk 0:01:30]}  h5 {[%clk 0:00:52]} 21. h3 {[%clk 0:01:29]}  g5 {[%clk 0:00:37]} 22. g4 {[%clk 0:01:25]}  Rh8 {[%clk 0:00:32]} 23. Bf5 {[%clk 0:01:17]}  hxg4+ {[%clk 0:00:28]} 24. Bxg4 {[%clk 0:01:14]}  Bxg4+ {[%clk 0:00:16]} 25. Kxg4 {[%clk 0:01:14]}  Rh4+ {[%clk 0:00:17]} 26. Kg3 {[%clk 0:01:14]}  axb3 {[%clk 0:00:13]} 27. axb3 {[%clk 0:01:13]}  Rah8 {[%clk 0:00:14]} 28. f3 {[%clk 0:01:04]}  Ke6 {[%clk 0:00:07]} 29. Bc5 {[%clk 0:00:42]}  Bd8 {[%clk 0:00:07]} 30. Ra7 {[%clk 0:00:23]}  R8h6 {[%clk 0:00:06]} 31. Kg2 {[%clk 0:00:19]}  Bf6 {[%clk 0:00:02]} 32. c4 {[%clk 0:00:18]}  dxc4 {[%clk 0:00:02]} 33. bxc4 {[%clk 0:00:18]}  Bxd4 {[%clk 0:00:02]} 34. Re1+ {[%clk 0:00:12]}  Kf6 {[%clk 0:00:02]} 35. Be7+ {[%clk 0:00:10]}  Kf5 {[%clk 0:00:03]} 36. Rh1 {[%clk 0:00:09]}  c5 {[%clk 0:00:02]} 37. Rd7 {[%clk 0:00:08]}  Re6 {[%clk 0:00:02]} 38. Rd5+ {[%clk 0:00:08]}  Kg6 {[%clk 0:00:02]} 39. Bxg5 {[%clk 0:00:08]}  Kh7 {[%clk 0:00:03]} 40. Bxh4 {[%clk 0:00:07]}  Re2+ {[%clk 0:00:04]} 41. Kg3 {[%clk 0:00:07]}  Kg6 {[%clk 0:00:03]} 42. Kg4 {[%clk 0:00:07]}  f5+ {[%clk 0:00:03]} 43. Rxf5 {[%clk 0:00:06]}  Rg2+ {[%clk 0:00:03]} 44. Kf4 {[%clk 0:00:07]}  Re2 {[%clk 0:00:01]} 45. Rd1 {[%clk 0:00:04]}  Bc3 {[%clk 0:00:01]} 46. Bg3 {[%clk 0:00:03]}  Bd4 {[%clk 0:00:01]} 47. Kg4 {[%clk 0:00:03]}  Rc2 {[%clk 0:00:01]} 48. h4 {[%clk 0:00:03]}  Rxc4 {[%clk 0:00:01]} 49. f4 {[%clk 0:00:04]}  Kg7 {[%clk 0:00:02]} 50. h5 {[%clk 0:00:04]}  Rc2 {[%clk 0:00:03]} 51. Rd5 {[%clk 0:00:04]}  Kf7 {[%clk 0:00:03]} 52. Kf3 {[%clk 0:00:05]}  Rc3+ {[%clk 0:00:03]} 53. Kg4 {[%clk 0:00:04]}  Rc4 {[%clk 0:00:03]} 54. Rg5 {[%clk 0:00:04]}  Bf6 {[%clk 0:00:03]} 55. h6 {[%clk 0:00:05]}  Bxg5 {[%clk 0:00:03]} 56. Kxg5 {[%clk 0:00:05]}  Rc3 {[%clk 0:00:04]} 57. Bh4 {[%clk 0:00:05]}  c4 {[%clk 0:00:03]} 58. Rd7+ {[%clk 0:00:06]}  Kf8 {[%clk 0:00:04]} 59. Rc7 {[%clk 0:00:06]}  Rc1 {[%clk 0:00:03]} 60. h7 {[%clk 0:00:07]}  Rg1+ {[%clk 0:00:04]} 61. Kf6 {[%clk 0:00:07]}  Rg6+ {[%clk 0:00:03]} 62. Kxg6 {[%clk 0:00:07]} 1-0


[Site "https://www.chess.com"]

[Event "Titled Tuesday Blitz March 28 Late 2023"]
[White "angelgab3"]
[Black "Raja Rithvik R"]
[BlackFideId "35007394"]
[WhiteElo "2552"]
[BlackElo "2402"]
[Result "1-0"]
[Round "08"]
[TimeControl "180+2"]
[Date "2023.03.28"]
[WhiteClock "0:01:16"]
[BlackClock "0:01:02"]

1. e4 {[%clk 0:03:00]}  g6 {[%clk 0:02:57]} 2. d4 {[%clk 0:03:00]}  Bg7 {[%clk 0:02:58]} 3. Nc3 {[%clk 0:03:01]}  d6 {[%clk 0:02:58]} 4. f4 {[%clk 0:02:59]}  a6 {[%clk 0:02:57]} 5. Nf3 {[%clk 0:02:59]}  b5 {[%clk 0:02:58]} 6. Bd3 {[%clk 0:02:59]}  Bb7 {[%clk 0:02:57]} 7. Qe2 {[%clk 0:03:00]}  Nd7 {[%clk 0:02:55]} 8. a4 {[%clk 0:02:58]}  b4 {[%clk 0:02:53]} 9. Nd1 {[%clk 0:02:58]}  c5 {[%clk 0:02:53]} 10. c3 {[%clk 0:02:58]}  bxc3 {[%clk 0:02:48]} 11. bxc3 {[%clk 0:02:58]}  Ngf6 {[%clk 0:02:42]} 12. O-O {[%clk 0:02:58]}  O-O {[%clk 0:02:39]} 13. f5 {[%clk 0:02:45]}  cxd4 {[%clk 0:02:23]} 14. cxd4 {[%clk 0:02:45]}  gxf5 {[%clk 0:02:22]} 15. exf5 {[%clk 0:02:46]}  Nd5 {[%clk 0:02:23]} 16. Nf2 {[%clk 0:02:23]}  N7f6 {[%clk 0:02:11]} 17. Bd2 {[%clk 0:02:10]}  Qd7 {[%clk 0:01:55]} 18. Nh3 {[%clk 0:01:59]}  Rac8 {[%clk 0:01:50]} 19. Qf2 {[%clk 0:01:54]}  Nc3 {[%clk 0:01:33]} 20. Qh4 {[%clk 0:01:54]}  Nce4 {[%clk 0:01:31]} 21. Bh6 {[%clk 0:01:51]}  Qxf5 {[%clk 0:01:07]} 22. Nfg5 {[%clk 0:01:27]}  Qg6 {[%clk 0:01:07]} 23. Bxg7 {[%clk 0:01:24]}  Kxg7 {[%clk 0:01:07]} 24. Rxf6 {[%clk 0:01:17]}  Qxf6 {[%clk 0:01:02]} 25. Qxh7# {[%clk 0:01:16]} 1-0


[Site "https://www.chess.com"]

[Event "Titled Tuesday Blitz March 28 Late 2023"]
[White "Krishnan, Varun"]
[Black "Holt, Conrad"]
[WhiteFideId "5054508"]
[BlackFideId "2034387"]
[WhiteElo "2539"]
[BlackElo "2592"]
[Result "0-1"]
[Round "08"]
[TimeControl "180+2"]
[Date "2023.03.28"]
[WhiteClock "0:00:10"]
[BlackClock "0:00:12"]

1. e4 {[%clk 0:03:00]}  e6 {[%clk 0:03:00]} 2. d4 {[%clk 0:02:59]}  d5 {[%clk 0:03:00]} 3. Nc3 {[%clk 0:02:59]}  Nf6 {[%clk 0:02:56]} 4. e5 {[%clk 0:02:59]}  Nfd7 {[%clk 0:02:57]} 5. f4 {[%clk 0:02:59]}  c5 {[%clk 0:02:57]} 6. Nf3 {[%clk 0:02:59]}  Nc6 {[%clk 0:02:58]} 7. Be3 {[%clk 0:03:00]}  cxd4 {[%clk 0:02:57]} 8. Nxd4 {[%clk 0:02:58]}  Bc5 {[%clk 0:02:58]} 9. Qd2 {[%clk 0:02:58]}  O-O {[%clk 0:02:58]} 10. O-O-O {[%clk 0:02:57]}  a6 {[%clk 0:02:58]} 11. h4 {[%clk 0:02:57]}  Nxd4 {[%clk 0:02:57]} 12. Bxd4 {[%clk 0:02:56]}  b5 {[%clk 0:02:58]} 13. h5 {[%clk 0:02:45]}  b4 {[%clk 0:02:57]} 14. Ne2 {[%clk 0:02:45]}  a5 {[%clk 0:02:57]} 15. g4 {[%clk 0:02:42]}  Qb6 {[%clk 0:02:53]} 16. f5 {[%clk 0:02:16]}  Nxe5 {[%clk 0:02:33]} 17. f6 {[%clk 0:01:44]}  gxf6 {[%clk 0:02:30]} 18. Qh6 {[%clk 0:01:32]}  Bxd4 {[%clk 0:00:38]} 19. Nxd4 {[%clk 0:01:31]}  Qd8 {[%clk 0:00:36]} 20. Nc6 {[%clk 0:00:45]}  Qd6 {[%clk 0:00:13]} 21. g5 {[%clk 0:00:37]}  Ng4 {[%clk 0:00:12]} 22. Ne7+ {[%clk 0:00:15]}  Qxe7 {[%clk 0:00:12]} 23. gxf6 {[%clk 0:00:16]}  Nxh6 {[%clk 0:00:12]} 24. fxe7 {[%clk 0:00:15]}  Re8 {[%clk 0:00:13]} 25. Rg1+ {[%clk 0:00:15]}  Kh8 {[%clk 0:00:13]} 26. Bd3 {[%clk 0:00:15]}  Rxe7 {[%clk 0:00:12]} 27. Rdf1 {[%clk 0:00:15]}  Bd7 {[%clk 0:00:13]} 28. Rf6 {[%clk 0:00:14]}  Rg8 {[%clk 0:00:13]} 29. Rgf1 {[%clk 0:00:14]}  Nf5 {[%clk 0:00:12]} 30. Bxf5 {[%clk 0:00:13]}  exf5 {[%clk 0:00:12]} 31. h6 {[%clk 0:00:14]}  Be6 {[%clk 0:00:13]} 32. c3 {[%clk 0:00:13]}  Rg6 {[%clk 0:00:13]} 33. Rxg6 {[%clk 0:00:13]}  hxg6 {[%clk 0:00:13]} 34. cxb4 {[%clk 0:00:13]}  axb4 {[%clk 0:00:14]} 35. Kd2 {[%clk 0:00:14]}  Ra7 {[%clk 0:00:14]} 36. Ke3 {[%clk 0:00:12]}  Rxa2 {[%clk 0:00:14]} 37. Kf4 {[%clk 0:00:13]}  Kh7 {[%clk 0:00:13]} 38. Kg5 {[%clk 0:00:14]}  Rxb2 {[%clk 0:00:13]} 39. Rc1 {[%clk 0:00:15]}  Rg2+ {[%clk 0:00:13]} 40. Kf6 {[%clk 0:00:14]}  f4 {[%clk 0:00:12]} 41. Rc8 {[%clk 0:00:14]}  f3 {[%clk 0:00:12]} 42. Ke7 {[%clk 0:00:14]}  f2 {[%clk 0:00:12]} 43. Kf8 {[%clk 0:00:13]}  f1=Q {[%clk 0:00:12]} 44. Re8 {[%clk 0:00:13]}  Qf6 {[%clk 0:00:12]} 45. Rxe6 {[%clk 0:00:11]}  fxe6+ {[%clk 0:00:12]} 46. Ke8 {[%clk 0:00:10]}  b3 {[%clk 0:00:12]} 0-1


[Site "https://www.chess.com"]

[Event "Titled Tuesday Blitz March 28 Late 2023"]
[White "Vaglio Munoz, Jaime"]
[Black "Tilicheev, Viacheslav"]
[WhiteFideId "6500145"]
[BlackFideId "24114928"]
[WhiteElo "2199"]
[BlackElo "2415"]
[Result "1-0"]
[Round "08"]
[TimeControl "180+2"]
[Date "2023.03.28"]
[WhiteClock "0:00:07"]
[BlackClock "0:00:28"]

1. Nf3 {[%clk 0:03:00]}  Nf6 {[%clk 0:02:56]} 2. g3 {[%clk 0:03:00]}  b5 {[%clk 0:02:56]} 3. Bg2 {[%clk 0:02:58]}  Bb7 {[%clk 0:02:56]} 4. O-O {[%clk 0:02:55]}  e6 {[%clk 0:02:57]} 5. b3 {[%clk 0:02:44]}  c5 {[%clk 0:02:54]} 6. Na3 {[%clk 0:02:38]}  b4 {[%clk 0:02:53]} 7. Nc4 {[%clk 0:02:38]}  d6 {[%clk 0:02:51]} 8. d4 {[%clk 0:02:35]}  cxd4 {[%clk 0:02:50]} 9. Qxd4 {[%clk 0:02:33]}  Nc6 {[%clk 0:02:49]} 10. Qd1 {[%clk 0:02:26]}  Be7 {[%clk 0:02:40]} 11. a3 {[%clk 0:02:25]}  a5 {[%clk 0:02:39]} 12. axb4 {[%clk 0:02:25]}  axb4 {[%clk 0:02:39]} 13. Rxa8 {[%clk 0:02:25]}  Qxa8 {[%clk 0:02:40]} 14. Nxd6+ {[%clk 0:02:24]}  Bxd6 {[%clk 0:02:35]} 15. Qxd6 {[%clk 0:02:23]}  Ne4 {[%clk 0:02:36]} 16. Qc7 {[%clk 0:02:17]}  O-O {[%clk 0:02:32]} 17. Bb2 {[%clk 0:02:02]}  Nc3 {[%clk 0:02:17]} 18. Ra1 {[%clk 0:01:18]}  Nxe2+ {[%clk 0:01:53]} 19. Kf1 {[%clk 0:01:16]}  Ba6 {[%clk 0:01:53]} 20. Ke1 {[%clk 0:01:17]}  Rc8 {[%clk 0:01:52]} 21. Qb6 {[%clk 0:01:13]}  Ncd4 {[%clk 0:01:43]} 22. Nxd4 {[%clk 0:00:36]}  Qxg2 {[%clk 0:01:40]} 23. Qxa6 {[%clk 0:00:37]}  Rd8 {[%clk 0:01:05]} 24. Qxe2 {[%clk 0:00:30]}  e5 {[%clk 0:01:05]} 25. Qf3 {[%clk 0:00:26]}  Qxh2 {[%clk 0:00:59]} 26. Ra8 {[%clk 0:00:24]}  Rf8 {[%clk 0:00:37]} 27. Rxf8+ {[%clk 0:00:19]}  Kxf8 {[%clk 0:00:38]} 28. Nf5 {[%clk 0:00:11]}  f6 {[%clk 0:00:28]} 29. Qb7 {[%clk 0:00:07]} 1-0


[Site "https://www.chess.com"]

[Event "Titled Tuesday Blitz March 28 Late 2023"]
[White "Fan_Of_Chucky"]
[Black "Papasimakopoulos, Alexandros"]
[BlackFideId "4244125"]
[WhiteElo "2403"]
[BlackElo "2359"]
[Result "0-1"]
[Round "08"]
[TimeControl "180+2"]
[Date "2023.03.28"]
[WhiteClock "0:00:01"]
[BlackClock "0:01:50"]

1. d4 {[%clk 0:02:43]}  e6 {[%clk 0:02:50]} 2. c4 {[%clk 0:02:43]}  Nf6 {[%clk 0:02:50]} 3. Nf3 {[%clk 0:02:43]}  Bb4+ {[%clk 0:02:49]} 4. Bd2 {[%clk 0:02:41]}  Qe7 {[%clk 0:02:49]} 5. g3 {[%clk 0:02:40]}  Nc6 {[%clk 0:02:49]} 6. Bg2 {[%clk 0:02:39]}  Bxd2+ {[%clk 0:02:46]} 7. Qxd2 {[%clk 0:02:38]}  Ne4 {[%clk 0:02:46]} 8. Qc2 {[%clk 0:02:07]}  Qb4+ {[%clk 0:02:46]} 9. Nc3 {[%clk 0:01:41]}  Nxc3 {[%clk 0:02:45]} 10. Qxc3 {[%clk 0:01:40]}  Qxc3+ {[%clk 0:02:45]} 11. bxc3 {[%clk 0:01:41]}  Rb8 {[%clk 0:02:45]} 12. d5 {[%clk 0:01:31]}  Na5 {[%clk 0:02:43]} 13. Nd2 {[%clk 0:01:30]}  b6 {[%clk 0:02:43]} 14. e4 {[%clk 0:01:27]}  Ba6 {[%clk 0:02:42]} 15. Bf1 {[%clk 0:01:27]}  Ke7 {[%clk 0:02:36]} 16. Bd3 {[%clk 0:01:05]}  exd5 {[%clk 0:02:24]} 17. exd5 {[%clk 0:01:06]}  Rbe8 {[%clk 0:02:23]} 18. Kd1 {[%clk 0:01:04]}  Kd8 {[%clk 0:02:14]} 19. Kc2 {[%clk 0:01:00]}  g6 {[%clk 0:02:14]} 20. Rae1 {[%clk 0:00:59]}  f5 {[%clk 0:02:12]} 21. f4 {[%clk 0:00:37]}  c6 {[%clk 0:02:12]} 22. Re5 {[%clk 0:00:34]}  d6 {[%clk 0:02:00]} 23. Ree1 {[%clk 0:00:07]}  Kc7 {[%clk 0:01:58]} 24. Be2 {[%clk 0:00:05]}  cxd5 {[%clk 0:01:56]} 25. Bf3 {[%clk 0:00:02]}  Nxc4 {[%clk 0:01:50]} 26. Bxd5 {[%clk 0:00:01]}  Ne3+ {[%clk 0:01:50]} 0-1


[Site "https://www.chess.com"]

[Event "Titled Tuesday Blitz March 28 Late 2023"]
[White "Adewumi, Tanitoluwa"]
[Black "Mortazavi, Ali"]
[WhiteFideId "30966396"]
[BlackFideId "401323"]
[WhiteElo "2741"]
[BlackElo "2339"]
[Result "1-0"]
[Round "08"]
[TimeControl "180+2"]
[Date "2023.03.28"]
[WhiteClock "0:00:10"]
[BlackClock "0:00:05"]

1. e4 {[%clk 0:02:09]}  c6 {[%clk 0:02:58]} 2. d4 {[%clk 0:02:02]}  d5 {[%clk 0:02:58]} 3. exd5 {[%clk 0:02:00]}  cxd5 {[%clk 0:02:57]} 4. Bd3 {[%clk 0:02:01]}  Nc6 {[%clk 0:02:57]} 5. c3 {[%clk 0:02:00]}  Qc7 {[%clk 0:02:58]} 6. Ne2 {[%clk 0:02:00]}  Bg4 {[%clk 0:02:58]} 7. O-O {[%clk 0:02:00]}  e6 {[%clk 0:02:56]} 8. Qe1 {[%clk 0:02:00]}  Bd6 {[%clk 0:02:42]} 9. f3 {[%clk 0:01:57]}  Bf5 {[%clk 0:02:41]} 10. Bxf5 {[%clk 0:01:57]}  exf5 {[%clk 0:02:41]} 11. Nf4+ {[%clk 0:01:39]}  Kf8 {[%clk 0:02:39]} 12. Nxd5 {[%clk 0:01:38]}  Bxh2+ {[%clk 0:02:39]} 13. Kh1 {[%clk 0:01:38]}  Qd6 {[%clk 0:02:40]} 14. Ne3 {[%clk 0:01:08]}  g6 {[%clk 0:02:00]} 15. f4 {[%clk 0:00:46]}  Bxf4 {[%clk 0:01:52]} 16. Nxf5 {[%clk 0:00:46]}  gxf5 {[%clk 0:01:42]} 17. Bxf4 {[%clk 0:00:46]}  Qg6 {[%clk 0:01:42]} 18. Nd2 {[%clk 0:00:25]}  Nf6 {[%clk 0:01:40]} 19. Nf3 {[%clk 0:00:16]}  Ne4 {[%clk 0:01:22]} 20. Qh4 {[%clk 0:00:12]}  Rg8 {[%clk 0:01:19]} 21. Rg1 {[%clk 0:00:05]}  f6 {[%clk 0:01:16]} 22. d5 {[%clk 0:00:05]}  Ne7 {[%clk 0:01:11]} 23. Rad1 {[%clk 0:00:05]}  Kf7 {[%clk 0:01:06]} 24. d6 {[%clk 0:00:04]}  Nc6 {[%clk 0:01:05]} 25. d7 {[%clk 0:00:04]}  Rad8 {[%clk 0:00:51]} 26. Bc7 {[%clk 0:00:04]}  Rdf8 {[%clk 0:00:37]} 27. Rd5 {[%clk 0:00:02]}  Nd8 {[%clk 0:00:30]} 28. Bxd8 {[%clk 0:00:02]}  Rxd8 {[%clk 0:00:30]} 29. Kh2 {[%clk 0:00:02]}  Ke6 {[%clk 0:00:21]} 30. c4 {[%clk 0:00:02]}  Rxd7 {[%clk 0:00:20]} 31. Nd4+ {[%clk 0:00:03]}  Ke7 {[%clk 0:00:19]} 32. Nxf5+ {[%clk 0:00:03]}  Kd8 {[%clk 0:00:15]} 33. Rxd7+ {[%clk 0:00:02]}  Kxd7 {[%clk 0:00:16]} 34. Qxe4 {[%clk 0:00:02]}  Qh5+ {[%clk 0:00:14]} 35. Nh4 {[%clk 0:00:02]}  Rg4 {[%clk 0:00:14]} 36. Qf5+ {[%clk 0:00:02]}  Qxf5 {[%clk 0:00:11]} 37. Nxf5 {[%clk 0:00:03]}  Ke6 {[%clk 0:00:12]} 38. Ne3 {[%clk 0:00:03]}  Re4 {[%clk 0:00:10]} 39. Re1 {[%clk 0:00:04]}  f5 {[%clk 0:00:11]} 40. Nc2 {[%clk 0:00:04]}  Ke5 {[%clk 0:00:09]} 41. Kg3 {[%clk 0:00:05]}  a6 {[%clk 0:00:03]} 42. Kf3 {[%clk 0:00:04]}  h5 {[%clk 0:00:03]} 43. Rxe4+ {[%clk 0:00:04]}  fxe4+ {[%clk 0:00:04]} 44. Ke3 {[%clk 0:00:05]}  b6 {[%clk 0:00:05]} 45. Nd4 {[%clk 0:00:05]}  a5 {[%clk 0:00:04]} 46. Ne2 {[%clk 0:00:06]}  Kf5 {[%clk 0:00:03]} 47. b3 {[%clk 0:00:07]}  Kg4 {[%clk 0:00:03]} 48. a3 {[%clk 0:00:08]}  h4 {[%clk 0:00:03]} 49. Kxe4 {[%clk 0:00:09]}  h3 {[%clk 0:00:04]} 50. gxh3+ {[%clk 0:00:09]}  Kh4 {[%clk 0:00:04]} 51. Nc3 {[%clk 0:00:10]}  a4 {[%clk 0:00:04]} 52. bxa4 {[%clk 0:00:10]}  Kg3 {[%clk 0:00:05]} 53. a5 {[%clk 0:00:10]} 1-0


[Site "https://www.chess.com"]

[Event "Titled Tuesday Blitz March 28 Late 2023"]
[White "Ronka, Erik"]
[Black "Herrera Reyes, Jose Antonio"]
[WhiteFideId "505080"]
[BlackFideId "2274914"]
[WhiteElo "2264"]
[BlackElo "2273"]
[Result "0-1"]
[Round "08"]
[TimeControl "180+2"]
[Date "2023.03.28"]
[WhiteClock "0:00:19"]
[BlackClock "0:01:55"]

1. e4 {[%clk 0:03:00]}  c5 {[%clk 0:02:59]} 2. Nf3 {[%clk 0:02:59]}  e6 {[%clk 0:03:00]} 3. d4 {[%clk 0:02:54]}  cxd4 {[%clk 0:03:01]} 4. Nxd4 {[%clk 0:02:55]}  a6 {[%clk 0:03:01]} 5. h4 {[%clk 0:02:51]}  Qc7 {[%clk 0:03:00]} 6. g4 {[%clk 0:02:49]}  b6 {[%clk 0:02:59]} 7. Be3 {[%clk 0:02:48]}  Bb7 {[%clk 0:02:59]} 8. f3 {[%clk 0:02:48]}  h5 {[%clk 0:02:58]} 9. g5 {[%clk 0:02:42]}  Ne7 {[%clk 0:02:57]} 10. Qd2 {[%clk 0:02:32]}  Ng6 {[%clk 0:02:57]} 11. Nc3 {[%clk 0:02:21]}  Nc6 {[%clk 0:02:57]} 12. O-O-O {[%clk 0:02:19]}  Rc8 {[%clk 0:02:54]} 13. Kb1 {[%clk 0:01:59]}  b5 {[%clk 0:02:54]} 14. Nxc6 {[%clk 0:01:34]}  Qxc6 {[%clk 0:02:52]} 15. Ne2 {[%clk 0:01:34]}  Bb4 {[%clk 0:02:47]} 16. c3 {[%clk 0:01:28]}  Be7 {[%clk 0:02:47]} 17. Nd4 {[%clk 0:01:28]}  Qc7 {[%clk 0:02:47]} 18. Bg2 {[%clk 0:00:45]}  Ne5 {[%clk 0:02:46]} 19. f4 {[%clk 0:00:44]}  Nc4 {[%clk 0:02:46]} 20. Qe2 {[%clk 0:00:44]}  O-O {[%clk 0:02:19]} 21. f5 {[%clk 0:00:37]}  Ba3 {[%clk 0:01:57]} 22. Qxh5 {[%clk 0:00:21]}  Bxb2 {[%clk 0:01:54]} 23. g6 {[%clk 0:00:22]}  Na3+ {[%clk 0:01:54]} 24. Kxb2 {[%clk 0:00:19]}  Qxc3# {[%clk 0:01:55]} 0-1


[Site "https://www.chess.com"]

[Event "Titled Tuesday Blitz March 28 Late 2023"]
[White "Veiga, Jose Francisco R P Neves"]
[Black "Toniutti, Ezio"]
[WhiteFideId "1930087"]
[BlackFideId "113034"]
[WhiteElo "2320"]
[BlackElo "2215"]
[Result "1-0"]
[Round "08"]
[TimeControl "180+2"]
[Date "2023.03.28"]
[WhiteClock "0:00:12"]
[BlackClock "0:00:02"]

1. d4 {[%clk 0:02:32]}  d5 {[%clk 0:02:59]} 2. Nf3 {[%clk 0:02:33]}  Nf6 {[%clk 0:02:59]} 3. Bg5 {[%clk 0:02:34]}  Ne4 {[%clk 0:02:55]} 4. Bf4 {[%clk 0:02:34]}  c5 {[%clk 0:02:55]} 5. c3 {[%clk 0:02:34]}  Nc6 {[%clk 0:02:55]} 6. Nbd2 {[%clk 0:02:34]}  Bf5 {[%clk 0:02:54]} 7. Nh4 {[%clk 0:02:26]}  Qd7 {[%clk 0:02:38]} 8. Nxf5 {[%clk 0:02:24]}  Qxf5 {[%clk 0:02:38]} 9. e3 {[%clk 0:02:24]}  g5 {[%clk 0:02:03]} 10. g4 {[%clk 0:02:23]}  Qe6 {[%clk 0:01:51]} 11. Bg3 {[%clk 0:02:22]}  Nxd2 {[%clk 0:01:47]} 12. Qxd2 {[%clk 0:02:21]}  Qxg4 {[%clk 0:01:45]} 13. Bg2 {[%clk 0:02:13]}  e6 {[%clk 0:01:43]} 14. O-O {[%clk 0:02:08]}  Be7 {[%clk 0:01:40]} 15. dxc5 {[%clk 0:02:08]}  Bxc5 {[%clk 0:01:35]} 16. b4 {[%clk 0:02:01]}  Bb6 {[%clk 0:01:31]} 17. h3 {[%clk 0:01:54]}  Qf5 {[%clk 0:01:28]} 18. c4 {[%clk 0:01:25]}  dxc4 {[%clk 0:01:16]} 19. Qd6 {[%clk 0:01:24]}  Rd8 {[%clk 0:00:46]} 20. Bxc6+ {[%clk 0:01:22]}  bxc6 {[%clk 0:00:44]} 21. Qxc6+ {[%clk 0:01:23]}  Ke7 {[%clk 0:00:36]} 22. a4 {[%clk 0:00:56]}  Qd5 {[%clk 0:00:27]} 23. Qxd5 {[%clk 0:00:55]}  Rxd5 {[%clk 0:00:20]} 24. a5 {[%clk 0:00:56]}  Bd8 {[%clk 0:00:19]} 25. Rfc1 {[%clk 0:00:55]}  h5 {[%clk 0:00:14]} 26. Rxc4 {[%clk 0:00:54]}  h4 {[%clk 0:00:14]} 27. Bh2 {[%clk 0:00:42]}  Kd7 {[%clk 0:00:13]} 28. Kg2 {[%clk 0:00:39]}  Rg8 {[%clk 0:00:07]} 29. e4 {[%clk 0:00:38]}  Rb5 {[%clk 0:00:07]} 30. Rd1+ {[%clk 0:00:37]}  Ke8 {[%clk 0:00:07]} 31. Rc8 {[%clk 0:00:35]}  Ke7 {[%clk 0:00:07]} 32. Bd6+ {[%clk 0:00:25]}  Kf6 {[%clk 0:00:08]} 33. Bc5 {[%clk 0:00:22]}  g4 {[%clk 0:00:05]} 34. Rdxd8 {[%clk 0:00:17]}  Rg6 {[%clk 0:00:04]} 35. hxg4 {[%clk 0:00:14]}  Rxg4+ {[%clk 0:00:04]} 36. Kh3 {[%clk 0:00:15]}  Rxe4 {[%clk 0:00:04]} 37. Rd4 {[%clk 0:00:13]}  Kf5 {[%clk 0:00:03]} 38. Rxe4 {[%clk 0:00:13]}  Kxe4 {[%clk 0:00:03]} 39. Kxh4 {[%clk 0:00:13]}  f5 {[%clk 0:00:04]} 40. Rc7 {[%clk 0:00:12]}  Rb8 {[%clk 0:00:02]} 41. Rxa7 {[%clk 0:00:12]}  Kf4 {[%clk 0:00:02]} 42. Bd6+ {[%clk 0:00:12]} 1-0


[Site "https://www.chess.com"]